fUST/lending_fUST_20250718
["ID","MTS","AMOUNT","RATE_DAILY","PERIOD"]
[372930720,1752811859033,-150.103,0.00021279,2]
[372930721,1752811859042,-168.0,0.00021305,2]
[372930722,1752811859051,-823.0,0.00021317,2]
[372930723,1752811859061,-460.0,0.00021369,2]
[372930724,1752811859071,-153.115531,0.00021369,2]
[372930725,1752811859084,-151.0,0.00021369,2]
[372930726,1752811859094,-151.0,0.00021369,2]
[372930727,1752811859103,-151.0,0.00021369,2]
[372930728,1752811859113,-151.0,0.00021369,2]
[372930729,1752811859123,-338.45001,0.00021369,2]
[372930730,1752811859132,-460.0,0.00021369,2]
[372930731,1752811859141,-338.45001,0.00021369,2]
[372930732,1752811859152,-151.470043,0.00021369,2]
[372930733,1752811859161,-151.0,0.00021369,2]
[372930734,1752811859171,-151.0,0.00021369,2]
[372930735,1752811859180,-151.0,0.00021369,2]
[372930736,1752811859190,-151.0,0.00021369,2]
[372930737,1752811859199,-151.0,0.00021369,2]
[372930738,1752811859209,-820.75,0.00021369,2]
[372930739,1752811859219,-1262.46,0.00021369,2]
[372930740,1752811859228,-1501.929715,0.00021369,2]
[372930741,1752811859238,-1501.929715,0.00021369,2]
[372930742,1752811859248,-1968.81,0.00021369,2]
[372930743,1752811859257,-460.0,0.00021369,2]
[372930744,1752811859267,-460.0,0.00021369,2]
[372930745,1752811859276,-471.73,0.00021369,2]
[372930746,1752811859286,-1257.12,0.00021369,2]
[372930747,1752811859297,-513.3,0.00021369,2]
[372930748,1752811859307,-168.802016,0.00021369,2]
[372930749,1752811859316,-346.08,0.00021369,2]
[372930750,1752811859327,-168.802016,0.00021369,2]
[372930751,1752811859336,-817.71,0.00021369,2]
[372930752,1752811859346,-2157.28,0.00021369,2]
[372930753,1752811859355,-1264.35,0.00021369,2]
[372930754,1752811859364,-460.0,0.00021369,2]
[372930755,1752811859374,-203.596549,0.00021369,2]
[372930756,1752811859383,-203.596549,0.00021369,2]
[372930757,1752811859392,-703.44,0.00021369,2]
[372930758,1752811859402,-2195.52,0.00021369,2]
[372930759,1752811859411,-151.0,0.00021369,2]
[372930760,1752811859421,-1194.23,0.00021369,2]
[372930761,1752811859430,-460.0,0.00021369,2]
[372930762,1752811859440,-1130.55,0.00021369,2]
[372930763,1752811859450,-915.35,0.00021369,2]
[372930764,1752811859459,-806.43,0.00021369,2]
[372930765,1752811859469,-931.47,0.00021369,2]
[372930766,1752811859560,-550.52,0.00021369,2]
[372930767,1752811859570,-650.826,0.00021407,2]
[372930768,1752811859581,-2156.0,0.00021407,2]
[372930769,1752811859590,-968.0,0.00021407,2]
[372930770,1752811859600,-360.34321056,0.00021511,2]
[372930771,1752811859609,-500.0,0.00021628,2]
[372930772,1752811859619,-460.0,0.00021643,2]
[372930773,1752811859628,-151.0,0.00021643,2]
[372930774,1752811859637,-151.0,0.00021643,2]
[372930775,1752811859646,-151.0,0.00021643,2]
[372930776,1752811859656,-151.0,0.00021643,2]
[372930777,1752811859665,-151.0,0.00021643,2]
[372930778,1752811859674,-151.0,0.00021643,2]
[372930779,1752811859684,-460.0,0.00021643,2]
[372930780,1752811859693,-820.75,0.00021643,2]
[372930781,1752811859703,-1262.46,0.00021643,2]
[372930782,1752811859712,-1968.81,0.00021643,2]
[372930783,1752811859724,-485.82,0.00021643,2]
[372930784,1752811859733,-460.0,0.00021643,2]
[372930785,1752811859743,-471.73,0.00021643,2]
[372930786,1752811859752,-1257.12,0.00021643,2]
[372930787,1752811859762,-513.3,0.00021643,2]
[372930788,1752811859771,-817.71,0.00021643,2]
[372930789,1752811859780,-2157.28,0.00021643,2]
[372930790,1752811859790,-1264.35,0.00021643,2]
[372930791,1752811859799,-460.0,0.00021643,2]
[372930792,1752811859809,-703.44,0.00021643,2]
[372930793,1752811859818,-2195.52,0.00021643,2]
[372930794,1752811859827,-1194.23,0.00021643,2]
[372930795,1752811859837,-460.0,0.00021643,2]
[372930796,1752811859847,-1130.55,0.00021643,2]
[372930797,1752811859856,-915.35,0.00021643,2]
[372930798,1752811859866,-806.43,0.00021643,2]
[372930799,1752811859876,-931.47,0.00021643,2]
[372930800,1752811859885,-550.52,0.00021643,2]
[372930801,1752811859894,-168.0,0.00021711,2]
[372930802,1752811859903,-215.0738,0.00021759,2]
[372930803,1752811859913,-500.0,0.00021868,2]
[372930804,1752811859922,-460.0,0.00021917,2]
[372930805,1752811859931,-524.39349605,0.00021917,2]
[372930806,1752811859940,-820.75,0.00021917,2]
[372930807,1752811859950,-1262.46,0.00021917,2]
[372930808,1752811859959,-1968.81,0.00021917,2]
[372930809,1752811859969,-460.0,0.00021917,2]
[372930810,1752811859978,-471.73,0.00021917,2]
[372930811,1752811859988,-1257.12,0.00021917,2]
[372930812,1752811859998,-513.3,0.00021917,2]
[372930813,1752811860007,-817.71,0.00021917,2]
[372930814,1752811860017,-2157.28,0.00021917,2]
[372930815,1752811860027,-1264.35,0.00021917,2]
[372930816,1752811860037,-594.89,0.00021917,2]
[372930817,1752811860046,-703.44,0.00021917,2]
[372930818,1752811860058,-2195.52,0.00021917,2]
[372930819,1752811860076,-1194.23,0.00021917,2]
[372930820,1752811860090,-172.89,0.00021917,2]
[372930821,1752811860101,-1130.55,0.00021917,2]
[372930822,1752811860110,-915.35,0.00021917,2]
[372930823,1752811860120,-806.43,0.00021917,2]
[372930824,1752811860130,-931.47,0.00021917,2]
[372930825,1752811860140,-550.52,0.00021917,2]
[372930826,1752811860149,-151.0,0.00021918,2]
[372930827,1752811860160,-150.0,0.00021918,2]
[372930828,1752811860170,-150.0,0.00021918,2]
[372930829,1752811860179,-168.0,0.00021923,2]
[372930830,1752811860190,-11145.09342344,0.00021998,2]
[372930831,1752811860201,-2852.03,0.00022,7]
[372930832,1752811860210,-27651.28,0.00022,2]
[372930833,1752811860220,-1398.58,0.00022,7]
[372930834,1752811860230,-3000.0,0.000221,2]
[372930835,1752811860240,-151.0,0.000221,7]
[372930836,1752811860249,-388.265409,0.000221,7]
[372930837,1752811860261,-388.265409,0.000221,7]
[372930838,1752811860271,-151.0,0.000221,7]
[372930839,1752811860281,-4248.043928,0.0002211,2]
[372930840,1752811860291,-163.08,0.00022191,2]
[372930841,1752811860304,-820.75,0.00022191,2]
[372930842,1752811860314,-1262.46,0.00022191,2]
[372930843,1752811860325,-1968.81,0.00022191,2]
[372930844,1752811860334,-460.0,0.00022191,2]
[372930845,1752811860343,-471.73,0.00022191,2]
[372930846,1752811860354,-1257.12,0.00022191,2]
[372930847,1752811860364,-513.3,0.00022191,2]
[372930848,1752811860374,-817.71,0.00022191,2]
[372930849,1752811860384,-2157.28,0.00022191,2]
[372930850,1752811860395,-1264.35,0.00022191,2]
[372930851,1752811860406,-703.44,0.00022191,2]
[372930852,1752811860415,-2195.52,0.00022191,2]
[372930853,1752811860424,-1194.23,0.00022191,2]
[372930854,1752811860436,-1130.55,0.00022191,2]
[372930855,1752811860451,-915.35,0.00022191,2]
[372930856,1752811860472,-806.43,0.00022191,2]
[372930857,1752811860482,-931.47,0.00022191,2]
[372930858,1752811860492,-550.52,0.00022191,2]
[372930859,1752811860503,-964.23,0.000222,2]
[372930860,1752811860512,-168.0,0.00022284,2]
[372930861,1752811860522,-2406.25194444,0.00022365,2]
[372930862,1752811860532,-168.0,0.00022437,2]
[372930863,1752811860542,-820.75,0.00022465,2]
[372930864,1752811860551,-1262.46,0.00022465,2]
[372930865,1752811860560,-1968.81,0.00022465,2]
[372930866,1752811860570,-276.95,0.00022465,2]
[372930867,1752811860579,-471.73,0.00022465,2]
[372930868,1752811860590,-1257.12,0.00022465,2]
[372930869,1752811860600,-513.3,0.00022465,2]
[372930870,1752811860610,-817.71,0.00022465,2]
[372930871,1752811860622,-2157.28,0.00022465,2]
[372930872,1752811860633,-1264.35,0.00022465,2]
[372930873,1752811860643,-703.44,0.00022465,2]
[372930874,1752811860654,-2195.52,0.00022465,2]
[372930875,1752811860664,-1194.23,0.00022465,2]
[372930876,1752811860674,-1130.55,0.00022465,2]
[372930877,1752811860684,-915.35,0.00022465,2]
[372930878,1752811860693,-806.43,0.00022465,2]
[372930879,1752811860702,-931.47,0.00022465,2]
[372930880,1752811860712,-550.52,0.00022465,2]
[372930881,1752811860721,-300.41183888,0.00022466,2]
[372930882,1752811860730,-200.78142917,0.00022466,2]
[372930883,1752811860740,-1000.0,0.000225,2]
[372930884,1752811860749,-168.0,0.00022545,2]
[372930885,1752811860758,-2406.25194444,0.0002271,2]
[372930886,1752811860768,-1524.51727213,0.00022739,2]
[372930887,1752811860777,-1551.13584716,0.00022739,2]
[372930888,1752811860787,-6198.33884526,0.00022739,2]
[372930889,1752811860796,-820.82,0.00022739,2]
[372930890,1752811860806,-1262.53,0.00022739,2]
[372930891,1752811860815,-1968.91155059,0.00022739,2]
[372930892,1752811860825,-471.84,0.00022739,2]
[372930893,1752811860834,-1257.14,0.00022739,2]
[372930894,1752811860844,-513.36,0.00022739,2]
[372930895,1752811860854,-817.92,0.00022739,2]
[372930896,1752811860863,-2157.43,0.00022739,2]
[372930897,1752811860873,-1264.41,0.00022739,2]
[372930898,1752811860882,-703.53,0.00022739,2]
[372930899,1752811860892,-2195.52,0.00022739,2]
[372930900,1752811860901,-1194.39,0.00022739,2]
[372930901,1752811860911,-1130.71,0.00022739,2]
[372930902,1752811860921,-915.35,0.00022739,2]
[372930903,1752811860930,-806.44,0.00022739,2]
[372930904,1752811860939,-931.53,0.00022739,2]
[372930905,1752811860949,-550.63,0.00022739,2]
[372930906,1752811860958,-360.34321056,0.0002283,2]
[372930907,1752811860967,-500.0,0.00022964,2]
[372930908,1752811860977,-1000.0,0.00023,2]
[372930909,1752811860986,-2406.25194444,0.00023054,2]
[372930910,1752811860996,-223.0315306,0.00023128,2]
[372930911,1752811861005,-551.0,0.00023299,2]
[372930912,1752811861015,-27651.28,0.000233,2]
[372930913,1752811861024,-151.0,0.000233,7]
[372930914,1752811861034,-151.0,0.000233,7]
[372930915,1752811861043,-151.724833,0.000233,7]
[372930916,1752811861053,-151.0,0.000233,7]
[372930917,1752811861062,-151.0,0.000233,7]
[372930918,1752811861071,-3332.25400351,0.00023343,2]
[372930919,1752811861084,-2406.25194444,0.00023399,2]
[372930920,1752811861094,-500.78190628,0.000234,2]
[372930921,1752811861103,-1398.58,0.000234,7]
[372930922,1752811861113,-2852.03,0.000235,7]
[372930923,1752811861123,-1000.0,0.000235,2]
[372930924,1752811861133,-476.25663856,0.000235,7]
[372930925,1752811861144,-160.0,0.000235,7]
[372930926,1752811861157,-12610.43989422,0.000235,7]
[372930927,1752811861166,-561.822424,0.00023535,8]
[372930928,1752811861176,-299.98,0.00023571,2]
[372930929,1752811861186,-2891.847,0.00023718,2]
[372930930,1752811861196,-3332.25400352,0.00023725,2]
[372930931,1752811861206,-162.95973127,0.00023726,2]
[372930932,1752811861215,-2406.25194444,0.00023743,2]
[372930933,1752811861224,-230.0,0.0002379,2]
[372930934,1752811861234,-800.0,0.00023797,2]
[372930935,1752811861244,-151.0,0.00023836,2]
[372930936,1752811861253,-275.04290555,0.00023836,2]
[372930937,1752811861262,-151.0,0.00023836,2]
[372930938,1752811861271,-151.0,0.00023836,2]
[372930939,1752811861280,-199.0222745,0.00023836,2]
[372930940,1752811861290,-151.0,0.00023836,2]
[372930941,1752811861299,-216.75778794,0.00023836,2]
[372930942,1752811861309,-151.0,0.00023836,2]
[372930943,1752811861319,-440.0,0.00023836,2]
[372930944,1752811861327,-152.09768672,0.00023836,2]
[372930945,1752811861337,-151.98169663,0.00023836,2]
[372930946,1752811861346,-151.0,0.00023836,2]
[372930947,1752811861356,-151.0,0.00023836,2]
[372930948,1752811861365,-151.0,0.00023836,2]
[372930949,1752811861375,-151.0,0.00023836,2]
[372930950,1752811861385,-151.0,0.00023836,2]
[372930951,1752811861394,-500.0,0.00023836,2]
[372930952,1752811861481,-198.06440289,0.00023836,2]
[372930953,1752811861492,-151.0,0.00023836,2]
[372930954,1752811861502,-152.38912506,0.00023836,2]
[372930955,1752811861512,-151.0,0.00023836,2]
[372930956,1752811861521,-168.0,0.00023865,2]
[372930957,1752811861530,-800.0,0.00023898,2]
[372930958,1752811861540,-3362.95517695,0.000239,2]
[372930959,1752811861550,-1000.0,0.00024,2]
[372930960,1752811861559,-525.75194068,0.00024,7]
[372930961,1752811861568,-160.0,0.00024,7]
[372930962,1752811861578,-839.30593155,0.00024,7]
[372930963,1752811861588,-2150.5933463,0.00024016,2]
[372930964,1752811861597,-609.0,0.00024018,2]
[372930965,1752811861607,-162.95973127,0.00024027,2]
[372930966,1752811861616,-168.0,0.00024039,2]
[372930967,1752811861625,-2406.25194444,0.00024088,2]
[372930968,1752811861634,-12532.65,0.000241,7]
[372930969,1752811861644,-151.0,0.0002411,2]
[372930970,1752811861655,-151.32731012,0.0002411,2]
[372930971,1752811861665,-247.20688555,0.0002411,2]
[372930972,1752811861675,-440.0,0.0002411,2]
[372930973,1752811861684,-151.0,0.0002411,2]
[372930974,1752811861694,-151.94159908,0.0002411,2]
[372930975,1752811861704,-151.0,0.0002411,2]
[372930976,1752811861713,-151.0,0.0002411,2]
[372930977,1752811861723,-500.0,0.0002411,2]
[372930978,1752811861732,-151.0,0.0002411,2]
[372930979,1752811861742,-151.0,0.0002411,2]
[372930980,1752811861751,-151.0,0.00024125,7]
[372930981,1752811861761,-190.366264,0.00024125,7]
[372930982,1752811861770,-190.366264,0.00024125,7]
[372930983,1752811861780,-1950.34,0.00024125,6]
[372930984,1752811861790,-360.34321056,0.00024148,2]
[372930985,1752811861800,-1950.34,0.00024225,6]
[372930986,1752811861810,-2908.23591521,0.00024229,2]
[372930987,1752811861819,-168.0,0.00024317,2]
[372930988,1752811861829,-1950.34,0.00024325,5]
[372930989,1752811861839,-2908.23591521,0.00024329,2]
[372930990,1752811861848,-168.0,0.00024341,2]
[372930991,1752811861857,-162.95973127,0.00024356,2]
[372930992,1752811861866,-168.0,0.00024371,2]
[372930993,1752811861876,-201.58018176,0.00024384,2]
[372930994,1752811861885,-440.0,0.00024384,2]
[372930995,1752811861894,-151.0,0.00024384,2]
[372930996,1752811861905,-151.0,0.00024384,2]
[372930997,1752811861914,-151.0,0.00024384,2]
[372930998,1752811861924,-500.0,0.00024384,2]
[372930999,1752811861933,-151.0,0.00024384,2]
[372931000,1752811861942,-198.0,0.00024384,2]
[372931001,1752811861952,-10197.75210758,0.0002439,2]
[372931002,1752811861961,-647.0,0.00024407,2]
[372931003,1752811861975,-2156.0,0.00024407,2]
[372931004,1752811861988,-968.0,0.00024407,2]
[372931005,1752811861998,-1950.34,0.00024425,2]
[372931006,1752811862007,-2908.23591521,0.00024429,2]
[372931007,1752811862017,-2406.25194444,0.00024432,2]
[372931008,1752811862026,-2703.32743416,0.00024452,2]
[372931009,1752811862037,-231.28369723,0.00024497,2]
[372931010,1752811862047,-200.0,0.000245,2]
[372931011,1752811862057,-168.0,0.0002451,2]
[372931012,1752811862067,-1950.34,0.00024525,6]
[372931013,1752811862080,-2908.23591521,0.00024529,2]
[372931014,1752811862090,-151.0,0.00024529,7]
[372931015,1752811862100,-151.0,0.00024529,7]
[372931016,1752811862110,-151.0,0.00024529,7]
[372931017,1752811862122,-151.0,0.00024529,7]
[372931018,1752811862131,-151.0,0.00024529,7]
[372931019,1752811862141,-151.0,0.00024529,7]
[372931020,1752811862150,-151.932486,0.00024529,7]
[372931021,1752811862161,-32452.10096217,0.00024552,2]
[372931022,1752811862171,-86760.17015144,0.00024552,2]
[372931023,1752811862182,-40530.44935832,0.00024552,2]
[372931024,1752811862191,-151.0,0.00024552,7]
[372931025,1752811862201,-153.438271,0.00024552,7]
[372931026,1752811862210,-152.248119,0.00024552,7]
[372931027,1752811862219,-225.240953,0.00024552,7]
[372931028,1752811862229,-151.0,0.00024552,7]
[372931029,1752811862238,-151.0,0.00024552,7]
[372931030,1752811862248,-151.0,0.00024552,7]
[372931031,1752811862257,-262.770694,0.00024552,7]
[372931032,1752811862267,-151.0,0.00024552,7]
[372931033,1752811862276,-151.0,0.00024552,7]
[372931034,1752811862286,-151.0,0.00024552,7]
[372931035,1752811862295,-338.45001,0.00024552,7]
[372931036,1752811862305,-338.45001,0.00024552,7]
[372931037,1752811862315,-151.0,0.00024552,7]
[372931038,1752811862324,-151.0,0.00024552,7]
[372931039,1752811862334,-151.0,0.00024552,7]
[372931040,1752811862343,-151.0,0.00024552,7]
[372931041,1752811862353,-151.0,0.00024552,7]
[372931042,1752811862362,-173.437322,0.00024552,7]
[372931043,1752811862372,-151.0,0.00024552,7]
[372931044,1752811862382,-1501.929715,0.00024552,7]
[372931045,1752811862392,-1501.929715,0.00024552,7]
[372931046,1752811862401,-151.0,0.00024552,7]
[372931047,1752811862412,-168.802016,0.00024552,7]
[372931048,1752811862422,-168.802016,0.00024552,7]
[372931049,1752811862432,-203.596549,0.00024552,7]
[372931050,1752811862441,-203.596549,0.00024552,7]
[372931051,1752811862451,-151.0,0.00024552,7]
[372931052,1752811862463,-269.61347786,0.00024573,2]
[372931053,1752811862474,-152.323131,0.0002458,7]
[372931054,1752811862484,-388.265409,0.0002458,7]
[372931055,1752811862496,-388.265409,0.0002458,7]
[372931056,1752811862506,-151.0,0.0002458,7]
[372931057,1752811862516,-5150.27581877,0.0002458,2]
[372931058,1752811862525,-5000.0,0.0002458,2]
[372931059,1752811862534,-5000.0,0.0002458,2]
[372931060,1752811862544,-27651.28,0.000246,2]
[372931061,1752811862553,-1950.34,0.00024625,2]
[372931062,1752811862562,-2908.23591521,0.00024629,2]
[372931063,1752811862572,-50694.66253477,0.0002465,2]
[372931064,1752811862776,-429.42624312,0.00016712,2]
[372931065,1752811862788,-30.57375688,0.00016712,2]
[372931066,1752811862798,-3186.52,0.00019452,2]
[372931067,1752811862808,-3186.52,0.00019726,2]
[372931068,1752811862817,-3186.52,0.0002,2]
[372931069,1752811862827,-3186.52,0.00020273,2]
[372931070,1752811862836,-3186.52,0.00020547,2]
[372931071,1752811862846,-3186.52,0.00020821,2]
[372931072,1752811862855,-115296.08985055,0.0002465,2]
[372931073,1752811862867,-1325.23281116,0.0002465,2]
[372931074,1752811862878,-7907.62399334,0.0002465,2]
[372931075,1752811862887,-891.45260451,0.0002465,2]
[372931076,1752811862898,-2507.86976919,0.0002465,2]
[372931077,1752811862911,-1722.20947883,0.0002465,2]
[372931078,1752811862922,-317.50596469,0.0002465,2]
[372931079,1752811862934,-350.8164,0.0002465,2]
[372931080,1752811862945,-700.0,0.0002465,2]
[372931081,1752811863183,-460.0,0.00016438,2]
[372931082,1752811863193,-151.0,0.00020345,2]
[372931083,1752811863204,-407.0,0.00020561,2]
[372931084,1752811863214,-415.75,0.00020561,2]
[372931085,1752811863224,-3186.52,0.00021095,2]
[372931086,1752811863233,-3186.52,0.00021369,2]
[372931087,1752811863242,-3186.52,0.00021643,2]
[372931088,1752811863252,-3186.52,0.00021917,2]
[372931089,1752811863261,-3186.52,0.00022191,2]
[372931090,1752811863271,-3186.52,0.00022465,2]
[372931091,1752811863280,-3186.65,0.00022739,2]
[372931092,1752811863290,-6719.09853493,0.0002465,2]
[372931093,1752811863299,-501.83218807,0.0002465,2]
[372931094,1752811863309,-151.0,0.0002465,7]
[372931095,1752811863319,-151.0,0.0002465,7]
[372931096,1752811863328,-151.0,0.0002465,7]
[372931097,1752811863338,-151.0,0.0002465,7]
[372931098,1752811863347,-151.0,0.0002465,7]
[372931099,1752811863356,-151.0,0.0002465,7]
[372931100,1752811863365,-151.424394,0.0002465,7]
[372931101,1752811863374,-151.0,0.0002465,7]
[372931102,1752811863383,-151.0,0.0002465,7]
[372931103,1752811863393,-151.0,0.0002465,7]
[372931104,1752811863403,-151.0,0.0002465,7]
[372931105,1752811863413,-151.0,0.0002465,7]
[372931106,1752811863423,-151.0,0.0002465,7]
[372931107,1752811863433,-151.0,0.0002465,7]
[372931108,1752811863442,-151.0,0.0002465,7]
[372931109,1752811863453,-151.0,0.0002465,7]
[372931110,1752811863462,-151.0,0.0002465,7]
[372931111,1752811863472,-151.0,0.0002465,7]
[372931112,1752811863481,-190.366264,0.0002465,7]
[372931113,1752811863491,-190.366264,0.0002465,7]
[372931114,1752811863499,-287.50800003,0.00024651,2]
[372931115,1752811863508,-414.49,0.00024657,2]
[372931116,1752811863518,-414.49,0.00024657,2]
[372931117,1752811863527,-414.49,0.00024657,2]
[372931118,1752811863537,-414.49,0.00024657,2]
[372931119,1752811863546,-414.49,0.00024657,2]
[372931120,1752811863555,-414.49,0.00024657,2]
[372931121,1752811863564,-414.49,0.00024657,2]
[372931122,1752811863574,-414.49,0.00024657,2]
[372931123,1752811863583,-414.49,0.00024657,2]
[372931124,1752811863592,-414.49,0.00024657,2]
[372931125,1752811863601,-414.49,0.00024657,2]
[372931126,1752811863611,-414.49,0.00024657,2]
[372931127,1752811863621,-414.49,0.00024657,2]
[372931128,1752811863630,-414.49,0.00024657,2]
[372931129,1752811863639,-414.49,0.00024657,2]
[372931130,1752811863648,-414.49,0.00024657,2]
[372931131,1752811863659,-414.49,0.00024657,2]
[372931132,1752811863669,-414.49,0.00024657,2]
[372931133,1752811863679,-414.49,0.00024657,2]
[372931134,1752811863688,-414.49,0.00024657,2]
[372931135,1752811863698,-414.49,0.00024657,2]
[372931136,1752811863708,-414.49,0.00024657,2]
[372931137,1752811863718,-414.49,0.00024657,2]
[372931138,1752811863728,-414.5705605,0.00024657,2]
[372931139,1752811863737,-380.0,0.00024658,2]
[372931140,1752811863747,-200.0,0.00024658,2]
[372931141,1752811863756,-440.0,0.00024658,2]
[372931142,1752811863766,-245.0,0.00024658,2]
[372931143,1752811863776,-151.0,0.00024658,2]
[372931144,1752811863785,-245.0,0.00024658,2]
[372931145,1752811863795,-500.0,0.00024658,2]
[372931146,1752811863804,-293.91289897,0.00024658,2]
[372931147,1752811863814,-185.97543336,0.00024658,2]
[372931148,1752811863824,-500.0,0.00024658,2]
[372931149,1752811863834,-600.0,0.00024675,2]
[372931150,1752811863845,-168.0,0.00024687,2]
[372931151,1752811863854,-1950.34,0.00024725,4]
[372931152,1752811863864,-2908.23591521,0.00024729,2]
[372931153,1752811863875,-1667.190857,0.0002476,5]
[372931154,1752811863884,-356.043238,0.00024767,2]
[372931155,1752811863894,-583.2290956,0.00024767,2]
[372931156,1752811863903,-159.7855054,0.00024767,2]
[372931157,1752811863913,-577.0505339,0.00024767,2]
[372931158,1752811863923,-159.7855054,0.00024767,2]
[372931159,1752811863933,-577.0505339,0.00024767,2]
[372931160,1752811863942,-159.7855054,0.00024767,2]
[372931161,1752811863952,-577.0505339,0.00024767,2]
[372931162,1752811863962,-159.7855054,0.00024767,2]
[372931163,1752811863971,-159.7855054,0.00024767,2]
[372931164,1752811863981,-159.4613746,0.00024767,2]
[372931165,1752811863991,-12936.80858169,0.00024774,2]
[372931166,1752811864001,-2406.25194444,0.00024777,2]
[372931167,1752811864011,-1000.0,0.0002478,5]
[372931168,1752811864020,-2000.0,0.000248,2]
[372931169,1752811864030,-2006.8,0.000248,2]
[372931170,1752811864040,-151.0,0.000248,7]
[372931171,1752811864050,-2852.03,0.000248,7]
[372931172,1752811864060,-151.360221,0.000248,7]
[372931173,1752811864070,-151.0,0.000248,7]
[372931174,1752811864082,-151.0,0.000248,7]
[372931175,1752811864091,-151.0,0.000248,7]
[372931176,1752811864101,-151.0,0.000248,7]
[372931177,1752811864111,-277.500089,0.000248,7]
[372931178,1752811864122,-151.0,0.000248,7]
[372931179,1752811864131,-151.0,0.000248,7]
[372931180,1752811864142,-1000.0,0.000248,5]
[372931181,1752811864151,-151.0,0.000248,7]
[372931182,1752811864163,-173.509562,0.000248,7]
[372931183,1752811864173,-151.0,0.000248,7]
[372931184,1752811864183,-152.896059,0.000248,7]
[372931185,1752811864192,-151.0,0.000248,7]
[372931186,1752811864202,-338.45001,0.000248,7]
[372931187,1752811864211,-338.45001,0.000248,7]
[372931188,1752811864221,-151.0,0.000248,7]
[372931189,1752811864230,-271.476002,0.000248,7]
[372931190,1752811864239,-151.0,0.000248,7]
[372931191,1752811864250,-151.0,0.000248,7]
[372931192,1752811864259,-151.0,0.000248,7]
[372931193,1752811864269,-1501.929715,0.000248,7]
[372931194,1752811864280,-1501.929715,0.000248,7]
[372931195,1752811864290,-168.802016,0.000248,7]
[372931196,1752811864299,-168.802016,0.000248,7]
[372931197,1752811864309,-58256.6916736,0.000248,2]
[372931198,1752811864319,-151.0,0.000248,7]
[372931199,1752811864329,-203.596549,0.000248,7]
[372931200,1752811864338,-203.596549,0.000248,7]
[372931201,1752811864348,-151.0,0.000248,7]
[372931202,1752811864357,-151.0,0.000248,7]
[372931203,1752811864367,-151.0,0.000248,7]
[372931204,1752811864377,-151.0,0.000248,7]
[372931205,1752811864387,-151.0,0.000248,7]
[372931206,1752811864396,-240.663556,0.000248,7]
[372931207,1752811864407,-151.0,0.000248,7]
[372931208,1752811864416,-839.30593155,0.000248,7]
[372931209,1752811864426,-190.366264,0.000248,7]
[372931210,1752811864435,-1398.58,0.000248,7]
[372931211,1752811864444,-190.366264,0.000248,7]
[372931212,1752811864454,-151.0,0.00024825,7]
[372931213,1752811864463,-151.0,0.00024825,7]
[372931214,1752811864473,-151.0,0.00024825,7]
[372931215,1752811864482,-151.0,0.00024825,7]
[372931216,1752811864491,-151.0,0.00024825,7]
[372931217,1752811864501,-1950.34,0.00024825,4]
[372931218,1752811864511,-512.88113559,0.00024828,10]
[372931219,1752811864520,-2908.23591521,0.00024829,2]